[Event "Late-Titled-Tuesday-Blitz-June-18-2024"]
[Site "Chess.com"]
[Date "2024.06.18"]
[Round "1"]
[White "MagnusCarlsen"]
[Black "2346PL"]
[Result "1-0"]
[WhiteElo "3187"]
[BlackElo "2533"]
[TimeControl "180+1"]
[EndTime "14:04:58 PDT"]
[Termination "MagnusCarlsen won by resignation"]

1. e4 {[%clk 0:02:58.7]} 1... e5 {[%clk 0:02:59.5]} 2. Nf3 {[%clk 0:02:57.6]}
2... Nf6 {[%clk 0:03:00.1]} 3. Nxe5 {[%clk 0:02:56.5]} 3... Nxe4 {[%clk
0:03:00.4]} 4. Qe2 {[%clk 0:02:55.7]} 4... Qe7 {[%clk 0:03:00.6]} 5. Qxe4 {[%clk
0:02:55.8]} 5... d6 {[%clk 0:03:01.2]} 6. d4 {[%clk 0:02:55.6]} 6... dxe5 {[%clk
0:03:01.6]} 7. dxe5 {[%clk 0:02:55.7]} 7... Nc6 {[%clk 0:03:01.4]} 8. Nc3 {[%clk
0:02:55.8]} 8... Qxe5 {[%clk 0:03:00.7]} 9. Qxe5+ {[%clk 0:02:56.1]} 9... Nxe5
{[%clk 0:03:01.6]} 10. Bf4 {[%clk 0:02:56.2]} 10... Bd6 {[%clk 0:03:01.7]} 11.
Bg3 {[%clk 0:02:56.4]} 11... h5 {[%clk 0:03:01.2]} 12. Nb5 {[%clk 0:02:53.2]}
12... h4 {[%clk 0:02:53.4]} 13. Nxd6+ {[%clk 0:02:52.8]} 13... cxd6 {[%clk
0:02:54.3]} 14. Bf4 {[%clk 0:02:53.3]} 14... Bf5 {[%clk 0:02:48.2]} 15. O-O-O
{[%clk 0:02:53.2]} 15... O-O-O {[%clk 0:02:46.9]} 16. h3 {[%clk 0:02:47.7]}
16... f6 {[%clk 0:02:46.1]} 17. Rd4 {[%clk 0:02:47.3]} 17... g5 {[%clk
0:02:42.7]} 18. Be3 {[%clk 0:02:42.1]} 18... Kc7 {[%clk 0:02:07.8]} 19. Be2
{[%clk 0:02:41]} 19... a6 {[%clk 0:02:05.7]} 20. Rhd1 {[%clk 0:02:40.1]} 20...
b5 {[%clk 0:02:02.6]} 21. a4 {[%clk 0:02:29.1]} 21... Nc6 {[%clk 0:01:46.5]} 22.
axb5 {[%clk 0:02:14]} 22... axb5 {[%clk 0:01:35.3]} 23. Rd5 {[%clk 0:02:13.2]}
23... Be4 {[%clk 0:01:28.8]} 24. Rxb5 {[%clk 0:02:13.1]} 24... Rb8 {[%clk
0:01:29.1]} 25. f3 {[%clk 0:02:11.6]} 25... Rxb5 {[%clk 0:01:15.8]} 26. Bxb5
{[%clk 0:02:12.5]} 26... Rb8 {[%clk 0:01:15.8]} 27. fxe4 {[%clk 0:01:58.9]}
27... Rxb5 {[%clk 0:01:14.9]} 28. Rf1 {[%clk 0:01:58.3]} 28... Re5 {[%clk
0:01:08.2]} 29. Rxf6 {[%clk 0:01:57.7]} 29... Rxe4 {[%clk 0:01:08.5]} 30. Kd2
{[%clk 0:01:57.4]} 30... g4 {[%clk 0:01:02.4]} 31. Rf4 {[%clk 0:01:56]} 31...
Rxf4 {[%clk 0:00:41.6]} 32. Bxf4 {[%clk 0:01:56.9]} 32... Nd4 {[%clk 0:00:42.2]}
33. hxg4 {[%clk 0:01:54.7]} 33... Kd7 {[%clk 0:00:41.2]} 34. Kd3 {[%clk
0:01:54.2]} 1-0

[Event "Late-Titled-Tuesday-Blitz-June-18-2024"]
[Site "Chess.com"]
[Date "2024.06.18"]
[Round "1"]
[White "A4RookA3"]
[Black "Aswathchess"]
[Result "0-1"]
[WhiteElo "2430"]
[BlackElo "2763"]
[TimeControl "180+1"]
[EndTime "14:05:00 PDT"]
[Termination "Aswathchess won by resignation"]

1. d4 {[%clk 0:03:00.9]} 1... Nf6 {[%clk 0:02:56]} 2. Bf4 {[%clk 0:03:00.4]}
2... d6 {[%clk 0:02:55]} 3. Nc3 {[%clk 0:03:00.1]} 3... c6 {[%clk 0:02:53.1]} 4.
e4 {[%clk 0:02:59.6]} 4... Qb6 {[%clk 0:02:53]} 5. Rb1 {[%clk 0:02:50]} 5... e5
{[%clk 0:02:50.4]} 6. dxe5 {[%clk 0:02:37]} 6... dxe5 {[%clk 0:02:35]} 7. Be3
{[%clk 0:02:02.5]} 7... Bc5 {[%clk 0:02:33.9]} 8. Bxc5 {[%clk 0:02:00.8]} 8...
Qxc5 {[%clk 0:02:34.8]} 9. Be2 {[%clk 0:01:52.6]} 9... O-O {[%clk 0:02:33.3]}
10. Nf3 {[%clk 0:01:51.9]} 10... b5 {[%clk 0:02:31.6]} 11. a3 {[%clk 0:01:50.2]}
11... a5 {[%clk 0:02:30.2]} 12. Qd3 {[%clk 0:01:36.9]} 12... Bg4 {[%clk
0:02:25.4]} 13. h3 {[%clk 0:01:33.5]} 13... Bxf3 {[%clk 0:02:24]} 14. Qxf3
{[%clk 0:01:34.4]} 14... Nbd7 {[%clk 0:02:22.4]} 15. O-O {[%clk 0:01:33.6]}
15... Rfe8 {[%clk 0:02:22.2]} 16. Rfd1 {[%clk 0:01:32.7]} 16... Nf8 {[%clk
0:02:22.4]} 17. Bd3 {[%clk 0:01:15.6]} 17... Ne6 {[%clk 0:02:21.9]} 18. Ne2
{[%clk 0:01:15.3]} 18... b4 {[%clk 0:02:15.6]} 19. Ra1 {[%clk 0:01:07]} 19...
Red8 {[%clk 0:02:03.7]} 20. Ra2 {[%clk 0:00:57.6]} 20... Ng5 {[%clk 0:01:59.8]}
21. Qe3 {[%clk 0:00:44.1]} 21... Qxe3 {[%clk 0:01:58.8]} 22. fxe3 {[%clk
0:00:45]} 22... Ngxe4 {[%clk 0:01:56.4]} 23. axb4 {[%clk 0:00:44.9]} 23... axb4
{[%clk 0:01:56.8]} 24. Rda1 {[%clk 0:00:41.7]} 24... Rxa2 {[%clk 0:01:55.5]} 25.
Rxa2 {[%clk 0:00:42.6]} 25... b3 {[%clk 0:01:55]} 26. Ra3 {[%clk 0:00:34]} 26...
Nc5 {[%clk 0:01:51.7]} 27. Nc1 {[%clk 0:00:32.1]} 27... e4 {[%clk 0:01:50.3]}
28. Be2 {[%clk 0:00:29.2]} 28... bxc2 {[%clk 0:01:49.8]} 29. Rc3 {[%clk
0:00:30.1]} 29... Rd1+ {[%clk 0:01:48.8]} 30. Kf2 {[%clk 0:00:29]} 0-1

[Event "Late-Titled-Tuesday-Blitz-June-18-2024"]
[Site "Chess.com"]
[Date "2024.06.18"]
[Round "1"]
[White "Msb2"]
[Black "topce"]
[Result "1-0"]
[WhiteElo "3071"]
[BlackElo "2520"]
[TimeControl "180+1"]
[EndTime "14:05:04 PDT"]
[Termination "Msb2 won by resignation"]

1. d4 {[%clk 0:03:00.9]} 1... Nf6 {[%clk 0:02:56.5]} 2. c4 {[%clk 0:02:58.5]}
2... c5 {[%clk 0:02:55.8]} 3. d5 {[%clk 0:02:58.4]} 3... g6 {[%clk 0:02:54.4]}
4. Nc3 {[%clk 0:02:58.7]} 4... Bg7 {[%clk 0:02:54.3]} 5. e4 {[%clk 0:02:59.2]}
5... d6 {[%clk 0:02:54.3]} 6. h3 {[%clk 0:02:59.8]} 6... O-O {[%clk 0:02:54.3]}
7. Nf3 {[%clk 0:03:00.6]} 7... e6 {[%clk 0:02:55.2]} 8. Bd3 {[%clk 0:03:01.3]}
8... exd5 {[%clk 0:02:55.9]} 9. cxd5 {[%clk 0:03:02.2]} 9... b5 {[%clk
0:02:55.3]} 10. Nxb5 {[%clk 0:03:02.6]} 10... Re8 {[%clk 0:02:53]} 11. O-O
{[%clk 0:03:02.6]} 11... Nxe4 {[%clk 0:02:52.4]} 12. Bxe4 {[%clk 0:03:02.8]}
12... Rxe4 {[%clk 0:02:52.5]} 13. Nc3 {[%clk 0:02:59.6]} 13... Re8 {[%clk
0:02:50.7]} 14. Bg5 {[%clk 0:02:59.5]} 14... Qd7 {[%clk 0:02:50.5]} 15. Qd2
{[%clk 0:02:57.5]} 15... Bb7 {[%clk 0:02:44.6]} 16. Bh6 {[%clk 0:02:52]} 16...
Bh8 {[%clk 0:02:39.8]} 17. Qf4 {[%clk 0:02:48.5]} 17... Na6 {[%clk 0:02:37.9]}
18. Ne4 {[%clk 0:02:47.4]} 18... Rxe4 {[%clk 0:02:24.8]} 19. Qxe4 {[%clk
0:02:48.3]} 19... Nc7 {[%clk 0:02:21.5]} 20. Rfe1 {[%clk 0:02:32.7]} 20... Nxd5
{[%clk 0:02:12.1]} 21. Rad1 {[%clk 0:02:28.8]} 21... Nc3 {[%clk 0:02:03.1]} 22.
Rxd6 {[%clk 0:01:59]} 22... Qxd6 {[%clk 0:00:51.7]} 23. Qe8+ {[%clk 0:01:58.2]}
23... Qf8 {[%clk 0:00:49.5]} 24. Bxf8 {[%clk 0:01:58.3]} 24... Rxe8 {[%clk
0:00:44.8]} 25. Rxe8 {[%clk 0:01:59.2]} 25... Bc6 {[%clk 0:00:40.5]} 26. Rb8
{[%clk 0:01:58.3]} 26... Ne2+ {[%clk 0:00:34.1]} 27. Kf1 {[%clk 0:01:58]} 27...
f6 {[%clk 0:00:31.2]} 28. Bh6+ {[%clk 0:01:53.2]} 28... Kf7 {[%clk 0:00:30.6]}
29. Kxe2 {[%clk 0:01:53.6]} 29... Bxf3+ {[%clk 0:00:30.3]} 30. Kxf3 {[%clk
0:01:53.7]} 1-0

[Event "Late-Titled-Tuesday-Blitz-June-18-2024"]
[Site "Chess.com"]
[Date "2024.06.18"]
[Round "1"]
[White "edgarhay012"]
[Black "CoachVadim"]
[Result "1-0"]
[WhiteElo "2703"]
[BlackElo "2379"]
[TimeControl "180+1"]
[EndTime "14:05:09 PDT"]
[Termination "edgarhay012 won by resignation"]

1. e4 {[%clk 0:03:00.9]} 1... c5 {[%clk 0:02:59.4]} 2. Nc3 {[%clk 0:03:00.8]}
2... Nc6 {[%clk 0:02:59.2]} 3. Bb5 {[%clk 0:03:00.9]} 3... Nd4 {[%clk
0:02:55.7]} 4. Bc4 {[%clk 0:03:01]} 4... g6 {[%clk 0:02:51.9]} 5. Nf3 {[%clk
0:03:00.8]} 5... Bg7 {[%clk 0:02:51.7]} 6. Nxd4 {[%clk 0:03:00.4]} 6... cxd4
{[%clk 0:02:52.6]} 7. Qf3 {[%clk 0:03:01.2]} 7... e6 {[%clk 0:02:51]} 8. Nb5
{[%clk 0:03:00.9]} 8... d6 {[%clk 0:02:47.2]} 9. Qa3 {[%clk 0:03:00.3]} 9... Ke7
{[%clk 0:02:38.5]} 10. c3 {[%clk 0:02:58.7]} 10... dxc3 {[%clk 0:02:33.7]} 11.
dxc3 {[%clk 0:02:57.4]} 11... a6 {[%clk 0:02:32.8]} 12. Nd4 {[%clk 0:02:56.8]}
12... Nf6 {[%clk 0:02:26.9]} 13. Bg5 {[%clk 0:02:55.1]} 13... h6 {[%clk
0:02:25.5]} 14. Bxf6+ {[%clk 0:02:47.8]} 14... Bxf6 {[%clk 0:02:23.4]} 15. O-O
{[%clk 0:02:47.9]} 15... Re8 {[%clk 0:02:03.5]} 16. Rad1 {[%clk 0:02:46.3]}
16... Kf8 {[%clk 0:02:00.3]} 17. Rfe1 {[%clk 0:02:43.4]} 17... Kg8 {[%clk
0:01:41.9]} 18. h3 {[%clk 0:02:40.8]} 18... Qc7 {[%clk 0:01:38.5]} 19. Bf1
{[%clk 0:02:36.2]} 19... Bd7 {[%clk 0:01:35]} 20. Nf3 {[%clk 0:02:34.8]} 20...
Be7 {[%clk 0:01:34.5]} 21. Qb3 {[%clk 0:02:34.2]} 21... a5 {[%clk 0:01:27.1]}
22. a3 {[%clk 0:02:32.3]} 22... a4 {[%clk 0:01:26.8]} 23. Qc2 {[%clk 0:02:31.6]}
23... Bc6 {[%clk 0:01:24]} 24. Nd4 {[%clk 0:02:30.1]} 24... Kg7 {[%clk
0:01:21.9]} 25. Qd3 {[%clk 0:02:28.9]} 25... Qb6 {[%clk 0:01:19.2]} 26. Rd2
{[%clk 0:02:26.7]} 26... Red8 {[%clk 0:01:18.9]} 27. Red1 {[%clk 0:02:25.3]}
27... Bf6 {[%clk 0:01:16.9]} 28. Qb1 {[%clk 0:02:17.6]} 28... Ra5 {[%clk
0:01:13.6]} 29. Nf3 {[%clk 0:02:15.3]} 29... h5 {[%clk 0:01:12.1]} 30. Qc2
{[%clk 0:02:05.4]} 30... Be7 {[%clk 0:01:07.8]} 31. Bc4 {[%clk 0:02:00.5]} 31...
Qc5 {[%clk 0:01:05]} 32. Ba2 {[%clk 0:01:59.8]} 32... f5 {[%clk 0:01:01.1]} 33.
Nd4 {[%clk 0:01:52]} 33... Bd7 {[%clk 0:00:50.2]} 34. Bxe6 {[%clk 0:01:50.1]}
34... Qxd4 {[%clk 0:00:41.6]} 35. cxd4 {[%clk 0:01:45.1]} 35... Bxe6 {[%clk
0:00:42.2]} 36. Qc7 {[%clk 0:01:45]} 1-0

[Event "Late-Titled-Tuesday-Blitz-June-18-2024"]
[Site "Chess.com"]
[Date "2024.06.18"]
[Round "1"]
[White "DenLaz"]
[Black "VacheH009"]
[Result "1-0"]
[WhiteElo "3088"]
[BlackElo "2524"]
[TimeControl "180+1"]
[EndTime "14:05:14 PDT"]
[Termination "DenLaz won by resignation"]

1. d4 {[%clk 0:03:00.9]} 1... Nf6 {[%clk 0:02:58.4]} 2. c4 {[%clk 0:03:01.3]}
2... e6 {[%clk 0:02:56.6]} 3. Nf3 {[%clk 0:03:01.7]} 3... d5 {[%clk 0:02:56.4]}
4. Nc3 {[%clk 0:03:02.1]} 4... Bb4 {[%clk 0:02:56.2]} 5. Bg5 {[%clk 0:03:01.5]}
5... h6 {[%clk 0:02:55.4]} 6. Bxf6 {[%clk 0:03:01.8]} 6... Qxf6 {[%clk
0:02:56.3]} 7. e3 {[%clk 0:03:02.1]} 7... O-O {[%clk 0:02:54.7]} 8. Rc1 {[%clk
0:03:02.5]} 8... dxc4 {[%clk 0:02:49.6]} 9. Bxc4 {[%clk 0:03:02.3]} 9... c5
{[%clk 0:02:50.2]} 10. Qb3 {[%clk 0:03:01.8]} 10... Nc6 {[%clk 0:02:40.8]} 11.
dxc5 {[%clk 0:03:01.6]} 11... Bxc5 {[%clk 0:02:18.6]} 12. Ne4 {[%clk 0:02:58.6]}
12... Bb4+ {[%clk 0:02:18.8]} 13. Qxb4 {[%clk 0:02:55.8]} 13... Nxb4 {[%clk
0:02:19.7]} 14. Nxf6+ {[%clk 0:02:54.6]} 14... gxf6 {[%clk 0:02:20.6]} 15. a3
{[%clk 0:02:53.1]} 15... Nc6 {[%clk 0:02:16.9]} 16. Ke2 {[%clk 0:02:53.7]} 16...
Bd7 {[%clk 0:02:06.1]} 17. Rhd1 {[%clk 0:02:52.6]} 17... Rfd8 {[%clk 0:02:06.1]}
18. Bd3 {[%clk 0:02:34]} 18... Be8 {[%clk 0:01:59.7]} 19. g4 {[%clk 0:02:29.2]}
19... Rac8 {[%clk 0:01:52.1]} 20. Be4 {[%clk 0:02:27.8]} 20... Na5 {[%clk
0:01:35.8]} 21. Rxd8 {[%clk 0:02:24.1]} 21... Rxd8 {[%clk 0:01:32.8]} 22. Nd4
{[%clk 0:02:24]} 22... Nc6 {[%clk 0:00:27.6]} 23. Bxc6 {[%clk 0:02:19.4]} 23...
Bxc6 {[%clk 0:00:24.9]} 24. Nxc6 {[%clk 0:02:19.3]} 24... bxc6 {[%clk
0:00:25.8]} 25. Rxc6 {[%clk 0:02:19.4]} 25... Rb8 {[%clk 0:00:26]} 26. b4 {[%clk
0:02:19.2]} 26... Rb7 {[%clk 0:00:18.7]} 27. Kd3 {[%clk 0:02:18]} 27... Kg7
{[%clk 0:00:18.8]} 28. Kc3 {[%clk 0:02:17.3]} 28... Kg6 {[%clk 0:00:19]} 29. Rc5
{[%clk 0:02:17.2]} 29... Rd7 {[%clk 0:00:17.8]} 30. a4 {[%clk 0:02:16]} 30...
Rd6 {[%clk 0:00:15]} 31. b5 {[%clk 0:02:13.1]} 31... a6 {[%clk 0:00:13.7]} 32.
Rc6 {[%clk 0:02:11.5]} 32... Rd8 {[%clk 0:00:08.9]} 33. Rxa6 {[%clk 0:02:11.2]}
33... Kg5 {[%clk 0:00:09.8]} 34. b6 {[%clk 0:02:11.5]} 34... Kxg4 {[%clk
0:00:09.8]} 35. b7 {[%clk 0:02:11.6]} 35... Rb8 {[%clk 0:00:10.3]} 36. Rb6
{[%clk 0:02:11.9]} 36... Kf3 {[%clk 0:00:10.8]} 37. a5 {[%clk 0:02:12.4]} 37...
Kxf2 {[%clk 0:00:11.4]} 38. a6 {[%clk 0:02:13]} 1-0

[Event "Late-Titled-Tuesday-Blitz-June-18-2024"]
[Site "Chess.com"]
[Date "2024.06.18"]
[Round "1"]
[White "Hikaru"]
[Black "Itay121"]
[Result "1-0"]
[WhiteElo "3301"]
[BlackElo "2535"]
[TimeControl "180+1"]
[EndTime "14:05:15 PDT"]
[Termination "Hikaru won by checkmate"]

1. Nf3 {[%clk 0:03:00.8]} 1... d5 {[%clk 0:02:59.6]} 2. b3 {[%clk 0:03:00]} 2...
c5 {[%clk 0:02:56.4]} 3. e3 {[%clk 0:03:00]} 3... Nf6 {[%clk 0:02:56.2]} 4. Bb2
{[%clk 0:03:00]} 4... g6 {[%clk 0:02:55]} 5. d4 {[%clk 0:03:00]} 5... cxd4
{[%clk 0:02:54.5]} 6. Nxd4 {[%clk 0:03:00.2]} 6... Bg7 {[%clk 0:02:54.4]} 7. Be2
{[%clk 0:03:00]} 7... O-O {[%clk 0:02:54.7]} 8. O-O {[%clk 0:03:00.6]} 8... Nc6
{[%clk 0:02:54.1]} 9. Nxc6 {[%clk 0:03:00.5]} 9... bxc6 {[%clk 0:02:55]} 10. c4
{[%clk 0:03:01.3]} 10... Bf5 {[%clk 0:02:43.4]} 11. Qc1 {[%clk 0:03:00.1]} 11...
Ne4 {[%clk 0:02:40.8]} 12. Bxg7 {[%clk 0:02:59.5]} 12... Kxg7 {[%clk 0:02:41.7]}
13. Rd1 {[%clk 0:02:59.9]} 13... Rc8 {[%clk 0:02:36.5]} 14. Qb2+ {[%clk
0:02:48.6]} 14... Kg8 {[%clk 0:02:33]} 15. Nd2 {[%clk 0:02:47]} 15... Nxd2
{[%clk 0:02:29.4]} 16. Rxd2 {[%clk 0:02:47.9]} 16... Qa5 {[%clk 0:02:29]} 17. b4
{[%clk 0:02:47.8]} 17... Qd8 {[%clk 0:02:20.6]} 18. Rad1 {[%clk 0:02:47.6]}
18... Be6 {[%clk 0:02:11.2]} 19. Bf3 {[%clk 0:02:32.5]} 19... Qb6 {[%clk
0:02:05.3]} 20. cxd5 {[%clk 0:02:32.7]} 20... cxd5 {[%clk 0:02:04.9]} 21. Bxd5
{[%clk 0:02:33.6]} 21... Bxd5 {[%clk 0:02:02.9]} 22. Rxd5 {[%clk 0:02:34.5]}
22... Rb8 {[%clk 0:01:53.2]} 23. a3 {[%clk 0:02:32.1]} 23... a5 {[%clk
0:01:50.3]} 24. Rb1 {[%clk 0:02:28.3]} 24... axb4 {[%clk 0:01:49.8]} 25. axb4
{[%clk 0:02:29.2]} 25... Rfc8 {[%clk 0:01:45.4]} 26. h3 {[%clk 0:02:29.1]} 26...
e6 {[%clk 0:01:43.4]} 27. Rd4 {[%clk 0:02:28.7]} 27... Qb5 {[%clk 0:01:42.3]}
28. Rbd1 {[%clk 0:02:25.4]} 28... e5 {[%clk 0:01:30]} 29. Rd5 {[%clk 0:02:25]}
29... Qc4 {[%clk 0:01:12.4]} 30. b5 {[%clk 0:02:18.9]} 30... e4 {[%clk 0:01:03]}
31. b6 {[%clk 0:02:16.3]} 31... Qc6 {[%clk 0:00:57.7]} 32. Rd6 {[%clk
0:02:15.5]} 32... Qb7 {[%clk 0:00:54.4]} 33. Qf6 {[%clk 0:02:14.1]} 33... Rf8
{[%clk 0:00:46.5]} 34. h4 {[%clk 0:02:14.4]} 34... h5 {[%clk 0:00:45.3]} 35.
R1d5 {[%clk 0:02:06.9]} 35... Rbc8 {[%clk 0:00:34.1]} 36. Rxh5 {[%clk
0:02:03.9]} 36... Rc1+ {[%clk 0:00:24.4]} 37. Kh2 {[%clk 0:02:04.1]} 37... Rh1+
{[%clk 0:00:17.3]} 38. Kxh1 {[%clk 0:02:02.7]} 38... gxh5 {[%clk 0:00:17.6]} 39.
Qg5+ {[%clk 0:02:02.7]} 39... Kh7 {[%clk 0:00:17.6]} 40. Rh6# {[%clk 0:02:03.6]}
1-0

[Event "Late-Titled-Tuesday-Blitz-June-18-2024"]
[Site "Chess.com"]
[Date "2024.06.18"]
[Round "1"]
[White "cristiano78"]
[Black "ahkashefi2800"]
[Result "0-1"]
[WhiteElo "2225"]
[BlackElo "2603"]
[TimeControl "180+1"]
[EndTime "14:05:15 PDT"]
[Termination "ahkashefi2800 won by resignation"]

1. d4 {[%clk 0:02:59.2]} 1... Nf6 {[%clk 0:02:55.5]} 2. c4 {[%clk 0:02:58.1]}
2... e6 {[%clk 0:02:54.5]} 3. Nf3 {[%clk 0:02:57.1]} 3... b6 {[%clk 0:02:53.2]}
4. g3 {[%clk 0:02:55.5]} 4... Bb7 {[%clk 0:02:52.7]} 5. Bg2 {[%clk 0:02:54.2]}
5... Bb4+ {[%clk 0:02:51.7]} 6. Bd2 {[%clk 0:02:54]} 6... Bxd2+ {[%clk
0:02:51.5]} 7. Nbxd2 {[%clk 0:02:54.1]} 7... O-O {[%clk 0:02:51.9]} 8. O-O
{[%clk 0:02:54.1]} 8... d6 {[%clk 0:02:51.3]} 9. Qc1 {[%clk 0:02:53.3]} 9...
Nbd7 {[%clk 0:02:51]} 10. b4 {[%clk 0:02:53.2]} 10... a5 {[%clk 0:02:49.6]} 11.
a3 {[%clk 0:02:52.7]} 11... Ne4 {[%clk 0:02:48.9]} 12. Nxe4 {[%clk 0:02:52.3]}
12... Bxe4 {[%clk 0:02:48.7]} 13. Nd2 {[%clk 0:02:52.2]} 13... Bxg2 {[%clk
0:02:47.7]} 14. Kxg2 {[%clk 0:02:53.1]} 14... e5 {[%clk 0:02:46.2]} 15. Qc3
{[%clk 0:02:51.7]} 15... Qf6 {[%clk 0:02:43.7]} 16. Ne4 {[%clk 0:02:50.6]} 16...
Qg6 {[%clk 0:02:43.3]} 17. Qd3 {[%clk 0:02:44.9]} 17... exd4 {[%clk 0:02:39.2]}
18. Qxd4 {[%clk 0:02:44.2]} 18... Rfe8 {[%clk 0:02:38.6]} 19. Nc3 {[%clk
0:02:41.4]} 19... Ne5 {[%clk 0:02:29.8]} 20. Nd5 {[%clk 0:02:36.7]} 20... Nc6
{[%clk 0:02:01]} 21. Qd1 {[%clk 0:02:32.1]} 21... axb4 {[%clk 0:01:53.7]} 22.
Nxc7 {[%clk 0:02:31.4]} 22... bxa3 {[%clk 0:01:48.3]} 23. Nxe8 {[%clk
0:02:29.9]} 23... Qe4+ {[%clk 0:01:47.7]} 24. f3 {[%clk 0:02:27.8]} 24... Qxe8
{[%clk 0:01:47.8]} 25. Qxd6 {[%clk 0:02:27.1]} 25... a2 {[%clk 0:01:19.6]} 26.
e4 {[%clk 0:02:24.3]} 26... Ra4 {[%clk 0:01:14.8]} 27. Rfd1 {[%clk 0:02:20.9]}
27... h5 {[%clk 0:00:58.7]} 28. Rd2 {[%clk 0:02:11.5]} 28... Nb4 {[%clk
0:00:56.8]} 29. Rb2 {[%clk 0:01:56.5]} 29... Qe6 {[%clk 0:00:36.7]} 30. Rxb4
{[%clk 0:01:52.7]} 30... Qxd6 {[%clk 0:00:35.1]} 31. Rxa4 {[%clk 0:01:52.1]}
31... Qd2+ {[%clk 0:00:35.1]} 32. Kh3 {[%clk 0:01:51]} 32... Qd7+ {[%clk
0:00:34.5]} 33. Kg2 {[%clk 0:01:44.6]} 33... Qxa4 {[%clk 0:00:34.3]} 0-1

[Event "Late-Titled-Tuesday-Blitz-June-18-2024"]
[Site "Chess.com"]
[Date "2024.06.18"]
[Round "1"]
[White "kaanadayhamle"]
[Black "poseidon5191"]
[Result "1-0"]
[WhiteElo "2389"]
[BlackElo "2648"]
[TimeControl "180+1"]
[EndTime "14:05:17 PDT"]
[Termination "kaanadayhamle won by resignation"]

1. d4 {[%clk 0:02:58.8]} 1... d5 {[%clk 0:02:59.6]} 2. c4 {[%clk 0:02:58.1]}
2... dxc4 {[%clk 0:03:00.5]} 3. e3 {[%clk 0:02:57.3]} 3... Nf6 {[%clk
0:03:00.8]} 4. Bxc4 {[%clk 0:02:56.9]} 4... a6 {[%clk 0:03:01.7]} 5. a4 {[%clk
0:02:56.7]} 5... e6 {[%clk 0:03:01.8]} 6. Nf3 {[%clk 0:02:57.1]} 6... c5 {[%clk
0:03:02.1]} 7. O-O {[%clk 0:02:57.5]} 7... Nc6 {[%clk 0:03:02.4]} 8. Nc3 {[%clk
0:02:57.7]} 8... Qc7 {[%clk 0:03:02.1]} 9. Bb3 {[%clk 0:02:55.5]} 9... Bd6
{[%clk 0:03:02]} 10. Re1 {[%clk 0:02:55.5]} 10... O-O {[%clk 0:03:01.1]} 11. h3
{[%clk 0:02:56]} 11... b6 {[%clk 0:03:00.5]} 12. d5 {[%clk 0:02:55]} 12... exd5
{[%clk 0:02:59.8]} 13. Nxd5 {[%clk 0:02:55.9]} 13... Nxd5 {[%clk 0:02:59.9]} 14.
Bxd5 {[%clk 0:02:56.8]} 14... Bb7 {[%clk 0:03:00]} 15. e4 {[%clk 0:02:55.8]}
15... Rad8 {[%clk 0:02:49.6]} 16. Be3 {[%clk 0:02:55.6]} 16... Nb4 {[%clk
0:02:46.7]} 17. Bxb7 {[%clk 0:02:55.5]} 17... Bh2+ {[%clk 0:02:45.5]} 18. Nxh2
{[%clk 0:02:49.6]} 18... Rxd1 {[%clk 0:02:45.4]} 19. Raxd1 {[%clk 0:02:50.5]}
19... Qxb7 {[%clk 0:02:45.4]} 20. Bf4 {[%clk 0:02:47.5]} 20... Nc2 {[%clk
0:02:42.2]} 21. Re2 {[%clk 0:02:46]} 21... Nd4 {[%clk 0:02:42.3]} 22. Re3 {[%clk
0:02:45.3]} 22... Re8 {[%clk 0:02:39.5]} 23. Nf3 {[%clk 0:02:42.5]} 23... Rxe4
{[%clk 0:02:34.3]} 24. Nxd4 {[%clk 0:02:41.6]} 24... Rxe3 {[%clk 0:02:28.6]} 25.
Bxe3 {[%clk 0:02:40.4]} 25... cxd4 {[%clk 0:02:28.4]} 26. Rxd4 {[%clk
0:02:41.3]} 26... h6 {[%clk 0:02:26.3]} 27. Rd8+ {[%clk 0:02:35.1]} 27... Kh7
{[%clk 0:02:25.8]} 28. Rd6 {[%clk 0:02:36]} 28... b5 {[%clk 0:02:25.3]} 29. Rb6
{[%clk 0:02:36.3]} 29... Qd7 {[%clk 0:02:15.3]} 30. a5 {[%clk 0:02:28.9]} 30...
Qd1+ {[%clk 0:02:03.2]} 31. Kh2 {[%clk 0:02:29]} 31... Qe2 {[%clk 0:02:01.5]}
32. b4 {[%clk 0:02:26.9]} 32... Qc4 {[%clk 0:01:55.9]} 33. Bc5 {[%clk
0:02:23.5]} 33... Qf4+ {[%clk 0:01:52.7]} 34. g3 {[%clk 0:02:23.4]} 34... Qc4
{[%clk 0:01:47.5]} 35. Rxa6 {[%clk 0:02:20.6]} 35... h5 {[%clk 0:01:47.5]} 36.
h4 {[%clk 0:02:18]} 36... f6 {[%clk 0:01:46]} 37. Ra7 {[%clk 0:02:03.5]} 37...
Kh6 {[%clk 0:01:42.7]} 38. Be3+ {[%clk 0:01:42.5]} 38... Kg6 {[%clk 0:01:31.3]}
39. Bc5 {[%clk 0:01:38.7]} 39... Kh6 {[%clk 0:01:30.9]} 40. a6 {[%clk
0:01:12.6]} 40... Qa2 {[%clk 0:01:25]} 41. Ra8 {[%clk 0:01:10]} 41... Kg6 {[%clk
0:01:18.6]} 42. a7 {[%clk 0:01:08.3]} 1-0

[Event "Late-Titled-Tuesday-Blitz-June-18-2024"]
[Site "Chess.com"]
[Date "2024.06.18"]
[Round "1"]
[White "JAN2404"]
[Black "Orest_Vovk"]
[Result "0-1"]
[WhiteElo "2069"]
[BlackElo "2557"]
[TimeControl "180+1"]
[EndTime "14:05:19 PDT"]
[Termination "Orest_Vovk won by resignation"]

1. e4 {[%clk 0:02:59.5]} 1... g5 {[%clk 0:02:57.4]} 2. Nc3 {[%clk 0:02:57]} 2...
Bg7 {[%clk 0:02:56.7]} 3. d4 {[%clk 0:02:56.7]} 3... c5 {[%clk 0:02:55.6]} 4.
Be3 {[%clk 0:02:53.9]} 4... h6 {[%clk 0:02:48]} 5. Bc4 {[%clk 0:02:51.4]} 5...
Nc6 {[%clk 0:02:45]} 6. Nge2 {[%clk 0:02:50.1]} 6... cxd4 {[%clk 0:02:44.7]} 7.
Nxd4 {[%clk 0:02:49.6]} 7... d6 {[%clk 0:02:44.4]} 8. Qd2 {[%clk 0:02:43.6]}
8... Nf6 {[%clk 0:02:40.5]} 9. h4 {[%clk 0:02:39.8]} 9... g4 {[%clk 0:02:39.8]}
10. O-O-O {[%clk 0:02:28.9]} 10... Qa5 {[%clk 0:02:36.1]} 11. Kb1 {[%clk
0:02:25.3]} 11... a6 {[%clk 0:02:28.2]} 12. Rhe1 {[%clk 0:02:12]} 12... Ne5
{[%clk 0:02:27.9]} 13. Bb3 {[%clk 0:02:09.4]} 13... Bd7 {[%clk 0:02:24.9]} 14.
Bf4 {[%clk 0:01:51.6]} 14... Rc8 {[%clk 0:02:16.3]} 15. Nd5 {[%clk 0:01:48.2]}
15... Qxd2 {[%clk 0:02:15.3]} 16. Rxd2 {[%clk 0:01:48.4]} 16... Nxd5 {[%clk
0:02:14.8]} 17. Bxd5 {[%clk 0:01:46.7]} 17... Nc4 {[%clk 0:02:05.4]} 18. Rdd1
{[%clk 0:01:31.6]} 18... O-O {[%clk 0:01:50.8]} 19. Nf5 {[%clk 0:01:18.4]} 19...
Bxf5 {[%clk 0:01:43.1]} 20. exf5 {[%clk 0:01:16.3]} 20... Nxb2 {[%clk
0:01:39.3]} 21. Bxh6 {[%clk 0:00:46.9]} 21... Nxd1 {[%clk 0:01:32.7]} 22. Bxg7
{[%clk 0:00:46.9]} 22... Kxg7 {[%clk 0:01:32.9]} 23. Rxd1 {[%clk 0:00:47.2]}
23... Rc5 {[%clk 0:01:28.9]} 24. Rd4 {[%clk 0:00:41.8]} 24... Kf6 {[%clk
0:01:28.6]} 25. Kc1 {[%clk 0:00:25]} 25... Ke5 {[%clk 0:01:25.3]} 0-1